bitfinex/quotes_SOLUSD_20250731
["timestamp","ask_amount","ask_price","bid_price","bid_amount"]
[1753993949801,11.0262203,175.41,175.4,1e-08]
[1753993950004,11.7062203,175.41,175.4,1e-08]
[1753993950919,0.68,175.41,175.4,1e-08]
[1753993951098,5.698674,175.48,175.4,11.02622031]
[1753993951303,11.0262203,175.45,175.41,11.0262203]
[1753993951519,11.0262203,175.42,175.4,1e-08]
[1753993951717,52.8662203,175.41,175.4,1e-08]
[1753993952004,42.52,175.41,175.4,1e-08]
[1753993952229,41.84,175.41,175.4,1e-08]
[1753993952535,14.24027955,175.56,175.43,26.0]
[1753993952827,53.0662203,175.51,175.46,11.0262203]
[1753993953037,42.04,175.51,175.48,11.0262203]
[1753993953704,32.37579066,175.57,175.5,11.0262203]
[1753993954035,53.0662203,175.56,175.51,11.0262203]
[1753993954203,11.0262203,175.55,175.5,11.0262203]
[1753993954404,0.71,175.54,175.5,11.0262203]
[1753993954935,0.71,175.57,175.53,11.0262203]
[1753993955100,42.06,175.56,175.54,11.0262203]
[1753993955305,42.06,175.56,175.53,11.0262203]
[1753993955633,42.77,175.56,175.53,11.0262203]
[1753993955934,42.06,175.55,175.51,0.66]
[1753993956112,42.06,175.55,175.54,11.0262203]
[1753993956527,0.71,175.59,175.54,11.0262203]
[1753993956736,41.04,175.6,175.55,11.0262203]
[1753993957017,42.04,175.59,175.57,11.0262203]
[1753993958149,42.04,175.59,175.58,11.0262203]
[1753993958654,42.04,175.59,175.57,11.0262203]
[1753993959137,41.04,175.6,175.58,11.0262203]
[1753993959437,41.98,175.59,175.58,11.0262203]
[1753993960007,41.98,175.59,175.57,11.0262203]
[1753993960842,5.69573389,175.57,175.45,0.66]
[1753993961019,11.0262203,175.54,175.49,11.0262203]
[1753993961341,42.0,175.53,175.47,0.66]
[1753993961538,42.71,175.53,175.49,11.0262203]
[1753993961827,22.48041786,175.57,175.49,11.0262203]
[1753993961828,41.98,175.52,175.49,11.0262203]
[1753993962263,42.69,175.52,175.46,5.69930468]
[1753993962425,41.98,175.52,175.49,11.0262203]
[1753993962812,41.98,175.52,175.49,16.72453193]
[1753993963233,0.71,175.51,175.48,11.0262203]
[1753993964235,0.71,175.5,175.47,16.72489943]
[1753993964421,41.94,175.49,175.47,16.72489943]
[1753993964605,41.94,175.49,175.43,31.70007482]
[1753993964806,11.7362203,175.48,175.43,16.72629512]
[1753993965019,11.7362203,175.47,175.43,16.72629512]
[1753993965219,0.71,175.5,175.46,11.0262203]
[1753993965519,0.71,175.5,175.43,6.36007482]
[1753993965520,42.0,175.49,175.47,11.0262203]
[1753993965742,42.0,175.49,175.45,11.0262203]
[1753993966242,42.0,175.49,175.46,11.0262203]
[1753993966541,42.0,175.49,175.47,5.69897988]
[1753993966919,42.0,175.49,175.47,16.72520018]
[1753993967117,41.98,175.48,175.47,16.72520018]
[1753993967646,41.98,175.48,175.46,16.72548291]
[1753993968846,0.71,175.47,175.44,5.69969651]
[1753993969015,0.71,175.46,175.44,5.69969651]
[1753993969216,41.94,175.45,175.44,5.69969651]
[1753993970030,41.94,175.45,175.42,26.0]
[1753993970031,42.65,175.45,175.42,5.70053401]
[1753993970240,41.94,175.45,175.42,16.72675431]
[1753993970440,41.94,175.45,175.43,11.0262203]
[1753993970826,41.94,175.45,175.43,16.72641645]
[1753993971043,41.94,175.45,175.41,5.70062201]
[1753993971044,42.65,175.45,175.41,5.70062201]
[1753993971244,0.71,175.44,175.41,16.72684231]
[1753993971430,0.71,175.43,175.4,11.02622031]
[1753993971751,41.9,175.42,175.4,11.02622031]
[1753993971929,42.61,175.42,175.4,1e-08]
[1753993972325,0.71,175.41,175.4,1e-08]
[1753993972534,11.7362203,175.41,175.4,1e-08]
[1753993972754,17.43714955,175.41,175.4,1e-08]
[1753993973058,16.78468397,175.4,175.38,0.06]
[1753993973233,52.9462203,175.39,175.38,0.06]
[1753993973562,74.64225976,175.39,175.38,0.06]
[1753993974951,69.31761879,175.39,175.38,0.06]
[1753993975250,70.44090427,175.39,175.38,0.06]
[1753993975443,76.1424836,175.39,175.38,0.06]
[1753993975754,38.42046047,175.39,175.38,0.06]
[1753993976057,76.1424836,175.39,175.38,0.06]
[1753993976960,16.78468397,175.35,175.34,0.2]
[1753993977129,69.73090427,175.35,175.34,0.2]
[1753993977328,59.41468397,175.35,175.34,0.2]
[1753993977530,42.65,175.35,175.34,0.2]
[1753993977728,53.6762203,175.35,175.34,0.2]
[1753993978171,70.46090427,175.35,175.34,0.2]
[1753993978954,80.35701014,175.35,175.34,0.2]
[1753993979637,106.33701014,175.35,175.34,0.2]
[1753993979838,106.3362053,175.35,175.34,0.2]
[1753993980264,4.19242108,175.35,175.34,0.2]
[1753993980554,41.92,175.35,175.34,0.2]
[1753993981370,17.49468397,175.38,175.34,0.2]
[1753993981651,58.72468397,175.37,175.34,0.2]
[1753993981858,58.72468397,175.37,175.31,0.2]
[1753993981859,26.0,175.32,175.31,0.2]
[1753993982064,16.78468397,175.31,175.29,0.06]
[1753993982361,95.87090427,175.3,175.29,0.06]
[1753993982540,27.81090427,175.28,175.27,0.06]
[1753993982742,69.87090427,175.28,175.27,0.06]
[1753993983075,69.87090427,175.28,175.08,10.0]
[1753993983076,42.78468397,175.17,175.08,0.66]
[1753993983239,95.95090427,175.17,175.08,0.66]
[1753993983569,95.95090427,175.17,175.06,11.6862203]
[1753993983570,96.66090427,175.17,175.06,11.6862203]
[1753993983859,16.78468397,175.12,175.0,5.8140159]
[1753993984066,80.99712457,175.12,175.01,0.66]
[1753993984241,80.99712457,175.12,175.03,6.38325431]
[1753993984242,81.75712457,175.12,175.03,6.38325431]
[1753993984862,41.1,175.18,175.07,15.62534771]
[1753993984863,0.68,175.16,175.07,15.62534771]
[1753993985061,49.17407591,175.15,175.07,15.62534771]
[1753993985263,15.62534771,175.13,175.07,15.62534771]
[1753993985568,42.26,175.12,175.11,0.87]
[1753993985756,42.26,175.12,175.11,0.2]
[1753993986754,57.88534771,175.12,175.11,0.2]
[1753993988086,42.26,175.12,175.11,0.2]
[1753993988366,81.06040171,175.12,175.11,0.2]
[1753993988540,16.78468397,175.12,175.11,0.2]
[1753993988743,58.98468397,175.12,175.11,0.2]
[1753993988956,74.61003168,175.12,175.11,0.2]
[1753993989756,58.98468397,175.12,175.11,0.2]
[1753993989973,16.78468397,175.12,175.11,0.2]
[1753993990265,58.96468397,175.12,175.11,0.2]
[1753993990473,80.98040171,175.12,175.11,0.2]
[1753993991349,106.98040171,175.12,175.11,0.2]
[1753993991680,58.96468397,175.12,175.11,0.2]
[1753993992374,42.18,175.12,175.11,0.2]
[1753993994877,80.98040171,175.12,175.11,0.2]
[1753993995480,58.92468397,175.12,175.11,0.2]
[1753993995795,42.14,175.12,175.11,0.2]
[1753993996355,42.14,175.12,175.11,15.82534771]
[1753993996980,148.28,175.19,175.11,22.20590132]
[1753993997194,0.68,175.22,175.18,15.62534771]
[1753993997488,15.62534771,175.19,175.11,0.87]
[1753993997651,26.0,175.2,175.11,0.87]
[1753993997652,75.31003168,175.18,175.11,0.2]
[1753993997987,42.24,175.17,175.13,15.62534771]
[1753993998274,42.92,175.17,175.13,15.62534771]
[1753993998491,16.78468397,175.15,175.13,15.62534771]
[1753993998786,42.24,175.14,175.13,15.62534771]
[1753993999581,42.24,175.14,175.13,21.33539167]
[1753993999792,42.22,175.14,175.13,22.00539167]
[1753993999995,0.68,175.2,175.13,22.00539167]
[1753993999996,26.68,175.2,175.13,22.00539167]
[1753994000163,58.98468397,175.19,175.16,15.62534771]
[1753994000359,58.98468397,175.19,175.15,15.62534771]
[1753994000558,42.2,175.18,175.13,6.38004396]
[1753994000784,42.2,175.18,175.14,15.62534771]
[1753994000985,0.68,175.24,175.17,15.62534771]
[1753994001200,0.68,175.24,175.15,0.67]
[1753994001201,58.96468397,175.23,175.19,15.62534771]
[1753994001399,42.78468397,175.23,175.19,15.62534771]
[1753994001583,16.78468397,175.21,175.19,15.62534771]
[1753994001765,58.96468397,175.2,175.19,15.62534771]
[1753994001960,16.78468397,175.2,175.17,15.62534771]
[1753994002161,42.18,175.19,175.18,15.62534771]
[1753994002399,16.78468397,175.2,175.18,15.62534771]
[1753994002615,16.78468397,175.2,175.19,15.62534771]
[1753994002780,58.94468397,175.2,175.19,15.62534771]
[1753994002988,16.78468397,175.2,175.19,15.62534771]
[1753994003192,58.92468397,175.2,175.16,0.67]
[1753994003496,58.92468397,175.2,175.18,15.62534771]
[1753994003707,33.09003168,175.19,175.11,26.2]
[1753994003901,15.62534771,175.14,175.11,0.2]
[1753994004097,15.62534771,175.12,175.11,0.2]
[1753994004403,2.97897045,175.2,175.12,0.67]
[1753994004604,58.92468397,175.19,175.17,15.62534771]
[1753994004815,16.78468397,175.17,175.11,0.2]
[1753994005023,11.05986877,175.15,175.11,5.91058621]
[1753994005301,42.22,175.14,175.11,16.97045498]
[1753994005516,53.27986877,175.14,175.11,0.2]
[1753994005682,59.66960021,175.14,175.11,0.2]
[1753994005880,0.68,175.13,175.11,0.2]
[1753994006106,42.2,175.12,175.11,0.2]
[1753994007000,16.78468397,175.14,175.11,11.25986877]
[1753994007173,42.2,175.12,175.11,0.2]
[1753994007690,42.2,175.12,175.11,5.91069613]
[1753994008400,42.16,175.12,175.11,17.6405649]
[1753994008981,42.16,175.12,175.11,16.9705649]
[1753994010302,42.16,175.12,175.11,0.2]
[1753994010598,42.84,175.12,175.11,0.2]
[1753994011708,42.16,175.12,175.11,0.2]
[1753994012389,58.94468397,175.12,175.11,0.2]
[1753994012693,70.68455274,175.12,175.11,0.2]
[1753994013097,76.39492277,175.12,175.11,0.2]
[1753994014209,91.62182622,175.12,175.11,1e-08]
[1753994015085,42.78468397,175.1,175.09,1e-08]
[1753994015302,100.11158742,175.1,175.09,1e-08]
[1753994015489,100.82158742,175.1,175.09,1e-08]
[1753994015887,106.53260969,175.1,175.09,1e-08]
[1753994016514,27.84455274,175.01,175.0,0.1]
[1753994016810,69.92455274,175.01,175.0,0.1]
[1753994017477,58.86468397,175.01,175.0,0.1]
[1753994017801,69.92455274,175.01,175.0,0.1]
[1753994018488,58.86468397,175.01,175.0,0.1]
[1753994018695,69.92455274,175.01,175.0,0.1]
[1753994019281,69.90455274,175.01,175.0,0.1]
[1753994019487,58.84468397,175.01,175.0,0.1]
[1753994020104,74.09461537,175.01,175.0,0.1]
[1753994020684,74.80461537,175.01,175.0,0.1]
[1753994021494,74.74461537,175.01,175.0,0.1]
[1753994021892,80.45857457,175.01,175.0,0.1]
[1753994025315,69.3987058,175.01,175.0,0.1]
[1753994025493,80.45857457,175.01,175.0,0.1]
[1753994027119,82.56259221,175.01,175.0,0.1]
[1753994027324,93.62246098,175.01,175.0,0.1]
[1753994027500,82.56259221,175.01,175.0,0.1]
[1753994027815,80.45857457,175.01,175.0,0.1]
[1753994028600,79.74857457,175.01,175.0,0.1]
[1753994028916,80.45857457,175.01,175.0,0.1]
[1753994029125,94.49882461,175.01,175.0,1e-08]
[1753994029308,96.60128489,175.01,175.0,1e-08]
[1753994029488,16.78468397,174.99,174.95,0.06]
[1753994029691,53.84455274,174.96,174.95,0.06]
[1753994029911,99.93461537,174.96,174.95,0.06]
[1753994030117,100.64461537,174.96,174.95,0.06]
[1753994030324,106.3602075,174.96,174.95,0.06]
[1753994030496,108.46014764,174.96,174.95,0.06]
[1753994031194,106.3602075,174.96,174.95,0.06]
[1753994031831,42.78468397,174.89,174.86,0.06]
[1753994032120,99.91461537,174.89,174.86,0.06]
[1753994032417,106.34249518,174.89,174.86,0.06]
[1753994032996,16.78468397,174.88,174.86,0.06]
[1753994033214,95.76455274,174.87,174.82,0.2]
[1753994033518,27.84455274,174.83,174.82,0.2]
[1753994033828,69.76455274,174.83,174.82,0.2]
[1753994034324,27.84455274,174.83,174.82,0.2]
[1753994034529,69.76455274,174.83,174.82,0.85]
[1753994034892,69.76455274,174.83,174.82,0.2]
[1753994035098,75.48439487,174.83,174.82,0.2]
[1753994035329,76.19439487,174.83,174.82,0.2]
[1753994035504,75.48439487,174.83,174.82,0.2]
[1753994038504,76.19439487,174.83,174.82,0.2]
[1753994040310,76.13439487,174.83,174.82,0.2]
[1753994041428,76.13439487,174.83,174.82,1e-08]
[1753994041633,16.78468397,174.79,174.77,0.1]
[1753994041924,69.68455274,174.78,174.77,0.1]
[1753994042092,70.39455274,174.78,174.77,0.1]
[1753994042532,76.11603117,174.78,174.77,0.1]
[1753994042715,75.40603117,174.78,174.77,0.1]
[1753994043402,26.0,174.78,174.77,0.75]
[1753994043635,41.84,174.78,174.77,11.80986877]
[1753994044147,41.12,174.78,174.77,11.80986877]
[1753994044327,5.71820677,174.88,174.77,17.53167457]
[1753994044638,5.7188608,174.86,174.83,11.05986877]
[1753994044814,41.86,174.85,174.82,11.05986877]
[1753994045000,11.05986877,174.84,174.79,11.48986877]
[1753994045203,11.05986877,174.81,174.77,11.15986877]
[1753994045492,41.86,174.8,174.78,0.43]
[1753994045708,41.88,174.79,174.78,11.48986877]
[1753994045902,41.86,174.79,174.78,0.43]
[1753994046308,41.86,174.79,174.77,0.1]
[1753994046509,58.64133347,174.79,174.77,0.1]
[1753994046738,11.05986877,174.78,174.77,0.1]
[1753994046936,54.53455274,174.78,174.77,0.1]
[1753994047319,42.78468397,174.78,174.77,0.1]
[1753994047530,78.93986877,174.78,174.77,0.1]
[1753994048117,67.88,174.78,174.77,0.1]
[1753994048343,70.41455274,174.78,174.77,0.1]
[1753994048552,76.13603117,174.78,174.77,0.1]
[1753994048843,47.60147843,174.78,174.77,0.1]
[1753994049052,67.9,174.78,174.77,0.53]
[1753994049230,67.9,174.78,174.77,0.1]
[1753994049560,26.0,174.8,174.77,0.53]
[1753994049719,41.9,174.79,174.77,11.58986877]
[1753994049920,41.9,174.79,174.77,11.15986877]
[1753994050243,41.9,174.79,174.78,0.43]
[1753994050428,41.9,174.79,174.77,11.15986877]
[1753994050631,41.9,174.79,174.77,0.1]
[1753994050829,41.9,174.79,174.78,11.48986877]
[1753994051216,11.05986877,174.87,174.78,11.48986877]
[1753994051419,11.05986877,174.87,174.82,11.05986877]
[1753994051420,58.68468397,174.86,174.82,11.05986877]
[1753994051619,95.74455274,174.86,174.81,11.05986877]
[1753994051849,84.68468397,174.86,174.81,11.48986877]
[1753994052116,84.68468397,174.86,174.77,5.82171402]
[1753994052117,11.05986877,174.83,174.77,0.1]
[1753994052347,52.95986877,174.82,174.77,11.15986877]
[1753994052530,52.95986877,174.82,174.77,0.1]
[1753994052531,16.78088841,174.8,174.77,0.1]
[1753994052852,52.95986877,174.79,174.77,0.1]
[1753994053014,41.9,174.78,174.77,0.1]
[1753994053219,41.9,174.78,174.77,11.15986877]
[1753994053647,41.9,174.78,174.77,0.1]
[1753994054159,41.9,174.78,174.77,11.58986877]
[1753994054448,31.72016931,174.82,174.77,11.58986877]
[1753994054653,47.64051381,174.81,174.77,0.1]
[1753994054815,58.70038258,174.81,174.77,0.1]
[1753994055017,47.64051381,174.81,174.77,11.15986877]
[1753994055239,47.64051381,174.81,174.77,0.1]
[1753994055453,59.39038258,174.81,174.77,0.1]
[1753994055648,11.05986877,174.79,174.77,0.1]
[1753994055948,41.9,174.78,174.77,0.1]
[1753994056141,52.95986877,174.78,174.77,0.1]
[1753994056651,76.15603117,174.78,174.77,0.1]
[1753994057224,80.33284498,174.78,174.77,0.1]
[1753994057423,80.33284498,174.78,174.77,1e-08]
[1753994057619,80.33284498,174.78,174.72,0.06]
[1753994057620,42.78468397,174.74,174.72,0.06]
[1753994057846,69.82455274,174.73,174.72,0.06]
[1753994058145,70.51455274,174.73,174.72,0.06]
[1753994058648,76.2376684,174.73,174.72,0.06]
[1753994058953,47.70311566,174.73,174.72,0.06]
[1753994059330,41.98,174.73,174.72,0.06]
[1753994059635,16.78468397,174.81,174.72,11.54986877]
[1753994059944,41.98,174.8,174.76,11.05986877]
[1753994060136,41.98,174.8,174.77,11.05986877]
[1753994060350,6.40918787,174.85,174.79,11.05986877]
[1753994060529,41.98,174.84,174.81,11.05986877]
[1753994060727,41.98,174.84,174.82,11.05986877]
[1753994060934,47.69957882,174.84,174.78,0.43]
[1753994061142,47.69957882,174.84,174.8,11.05986877]
[1753994061340,47.69957882,174.84,174.78,0.43]
[1753994061530,47.69957882,174.84,174.8,11.05986877]
[1753994062040,11.05986877,174.82,174.77,11.05986877]
[1753994062348,42.04,174.81,174.77,11.05986877]
[1753994062648,16.78101986,174.79,174.74,11.05986877]
[1753994062846,15.67913889,174.77,174.72,0.06]
[1753994063058,42.04,174.76,174.72,0.06]
[1753994063369,42.73,174.76,174.72,0.06]
[1753994063653,15.67913889,174.74,174.72,0.06]
[1753994063839,42.04,174.73,174.72,0.06]
[1753994064537,42.04,174.73,174.72,15.73913889]
[1753994066259,42.04,174.73,174.72,0.06]
[1753994066439,42.04,174.73,174.72,15.73913889]
[1753994066747,42.04,174.73,174.72,16.16913889]
[1753994066947,42.04,174.73,174.72,21.89258211]
[1753994067354,42.0,174.75,174.72,51.88032905]
[1753994067533,42.0,174.76,174.74,15.67913889]
[1753994067735,42.0,174.76,174.75,16.10913889]
[1753994068356,0.03,174.81,174.75,16.10913889]
[1753994068559,41.98,174.79,174.76,1.00221332]
[1753994068775,41.98,174.79,174.77,5.7218058]
[1753994069054,42.01,174.81,174.78,0.43]
[1753994069356,42.01,174.81,174.79,0.43]
[1753994069562,42.01,174.81,174.77,5.7218058]
[1753994069756,42.01,174.81,174.8,15.67913889]
[1753994070350,64.09965668,174.81,174.72,26.06]
[1753994070674,42.01,174.81,174.79,15.67913889]
[1753994070850,47.73054988,174.81,174.79,15.67913889]
[1753994071573,47.730553,174.81,174.79,15.67913889]
[1753994071873,48.420553,174.81,174.79,15.67913889]
[1753994072237,47.730553,174.81,174.79,15.67913889]
[1753994072436,47.730553,174.81,174.74,0.43]
[1753994072637,47.730553,174.81,174.79,15.67913889]
[1753994072860,0.03,174.81,174.8,15.67913889]
[1753994073062,41.99,174.81,174.8,15.67913889]
[1753994073380,41.99,174.81,174.8,16.10913889]
[1753994073956,0.03,174.81,174.8,16.10913889]
[1753994074944,0.03,174.81,174.8,21.82996268]
[1753994075773,0.03,174.81,174.79,15.67913889]
[1753994076073,41.94,174.8,174.74,17.21468397]
[1753994076370,41.94,174.8,174.79,15.67913889]
[1753994080170,41.94,174.8,174.77,5.7217535]
[1753994080367,48.33095551,174.8,174.73,16.78468397]
[1753994080556,48.33095551,174.8,174.77,15.67913889]
[1753994080865,0.67,174.79,174.76,15.67913889]
[1753994081065,0.67,174.78,174.76,15.67913889]
[1753994081259,41.86,174.77,174.76,15.67913889]
[1753994082563,41.86,174.77,174.76,21.8312721]
[1753994083458,41.86,174.77,174.76,21.4012721]
[1753994087490,0.03,174.81,174.76,21.8312721]
[1753994087791,41.78,174.8,174.77,0.43]
[1753994087972,41.78,174.8,174.79,15.67913889]
[1753994088992,41.78,174.8,174.79,10.0904378]
[1753994089188,0.03,174.81,174.8,16.78468397]
[1753994089391,0.03,174.83,174.82,10.0904378]
[1753994089571,0.03,174.83,174.82,10.66245473]
[1753994090285,0.03,174.83,174.82,11.09245473]
[1753994090665,0.03,174.83,174.77,0.43]
[1753994090882,41.74,174.82,174.77,5.7218058]
[1753994091092,0.67,174.81,174.77,5.7218058]
[1753994091991,41.74,174.82,174.8,10.0904378]
[1753994092186,41.74,174.82,174.81,10.0904378]
[1753994092777,42.41,174.82,174.81,10.0904378]
[1753994093373,48.13016931,174.82,174.81,10.0904378]
[1753994093877,42.41,174.82,174.81,10.0904378]
[1753994094197,41.74,174.82,174.81,10.0904378]
[1753994094984,0.03,174.83,174.81,26.87512177]
[1753994095180,0.03,174.83,174.82,10.66245473]
[1753994095382,0.03,174.83,174.82,15.81060711]
[1753994095875,0.03,174.83,174.82,16.24060711]
[1753994096284,0.03,174.83,174.82,10.0904378]
[1753994097082,0.03,174.83,174.82,32.59529108]
[1753994097295,47.58790108,174.89,174.88,10.0904378]
[1753994097478,47.58790108,174.89,174.87,10.0904378]
[1753994097479,89.32790108,174.89,174.87,10.0904378]
[1753994097681,0.67,174.88,174.87,10.0904378]
[1753994097877,0.67,174.88,174.79,26.43]
[1753994097878,26.0,174.86,174.76,16.84468397]
[1753994098187,46.66359414,174.85,174.78,10.0904378]
[1753994098374,10.0904378,174.83,174.76,0.06]
[1753994098579,10.0904378,174.83,174.78,10.0904378]
[1753994098776,10.0904378,174.8,174.76,0.06]
[1753994098997,26.67,174.82,174.76,0.06]
[1753994098998,51.8504378,174.79,174.76,0.06]
[1753994099185,52.5204378,174.79,174.76,0.06]
[1753994099393,0.67,174.78,174.76,0.06]
[1753994099706,41.78,174.78,174.77,10.0904378]
[1753994099871,41.78,174.78,174.76,0.06]
[1753994100076,42.45,174.78,174.76,10.1504378]
[1753994100399,0.67,174.8,174.77,10.0904378]
[1753994100702,41.78,174.79,174.78,10.0904378]
[1753994100920,41.78,174.79,174.78,15.66871117]
[1753994101276,41.78,174.8,174.78,15.66871117]
[1753994101482,41.78,174.8,174.79,15.66871117]
[1753994101689,41.78,174.8,174.76,0.06]
[1753994101902,0.67,174.79,174.76,15.72871117]
[1753994102210,41.78,174.8,174.78,15.66871117]
[1753994102412,0.67,174.81,174.79,15.66871117]
[1753994102711,0.67,174.86,174.8,15.66871117]
[1753994102876,0.67,174.86,174.85,15.66871117]
[1753994103080,42.49,174.86,174.85,15.66871117]
[1753994103295,42.49,174.86,174.77,16.78468397]
[1753994103488,0.67,174.85,174.78,6.29362627]
[1753994103844,41.82,174.86,174.84,15.66871117]
[1753994103990,41.82,174.86,174.85,15.66871117]
[1753994104612,42.5,174.86,174.85,15.66871117]
[1753994104806,42.5,174.86,174.81,26.0]
[1753994105011,0.68,174.85,174.82,15.66871117]
[1753994105188,41.82,174.86,174.82,15.66871117]
[1753994105387,0.68,174.84,174.82,15.66871117]
[1753994105584,0.68,174.83,174.82,15.66871117]
[1753994105783,0.68,174.88,174.82,21.81884473]
[1753994106004,46.91815003,174.89,174.87,15.66871117]
[1753994106181,41.84,174.87,174.84,15.66871117]
[1753994106383,0.68,174.86,174.8,35.1]
[1753994106597,47.59815003,174.89,174.85,15.66871117]
[1753994106896,46.91815003,174.89,174.87,15.66871117]
[1753994107111,41.84,174.88,174.87,15.66871117]
[1753994107613,42.52,174.88,174.87,15.66871117]
[1753994107810,48.23820677,174.88,174.87,15.66871117]
[1753994108023,48.23820677,174.88,174.8,35.1]
[1753994108309,16.34871117,174.87,174.82,15.66871117]
[1753994108488,0.68,174.86,174.78,16.78468397]
[1753994108692,0.68,174.86,174.83,15.66871117]
[1753994109016,0.68,174.85,174.83,15.66871117]
[1753994109184,42.5,174.84,174.83,15.66871117]
[1753994110197,42.5,174.84,174.82,15.66871117]
[1753994110524,0.68,174.83,174.82,15.66871117]
[1753994111018,0.68,174.83,174.78,0.57214784]
[1753994111221,0.68,174.82,174.8,15.66871117]
[1753994111395,42.48,174.81,174.8,15.66871117]
[1753994112815,48.20049653,174.81,174.8,15.66871117]
[1753994113014,42.48,174.81,174.8,15.66871117]
[1753994113325,63.8692077,174.81,174.76,0.06]
[1753994113499,0.68,174.8,174.76,0.06]
[1753994113699,0.68,174.79,174.77,15.66871117]
[1753994113907,41.76,174.78,174.77,15.66871117]
[1753994114294,5.72107375,174.8,174.77,15.66871117]
[1753994114604,41.76,174.79,174.78,15.66871117]
[1753994115702,41.76,174.79,174.76,0.06]
[1753994115908,42.44,174.79,174.78,15.66871117]
[1753994116106,42.44,174.79,174.76,0.06]
[1753994116300,0.68,174.78,174.76,0.06]
[1753994116619,0.68,174.78,174.76,15.72871117]
[1753994116826,0.68,174.78,174.76,0.06]
[1753994117022,0.68,174.77,174.76,15.72871117]
[1753994117516,48.1612163,174.79,174.76,15.72871117]
[1753994117694,0.68,174.78,174.76,15.72871117]
[1753994118014,47.4812163,174.79,174.76,15.72871117]
[1753994118228,41.76,174.79,174.77,15.66871117]
[1753994118391,41.76,174.79,174.78,15.66871117]
[1753994118791,42.44,174.79,174.77,15.66871117]
[1753994119228,48.16116833,174.79,174.77,15.66871117]
[1753994119600,42.44,174.79,174.76,0.06]
[1753994119802,41.76,174.79,174.78,15.66871117]
[1753994120096,42.4,174.79,174.76,0.06]
[1753994120304,42.4,174.79,174.77,15.66871117]
[1753994121302,41.72,174.79,174.78,15.66871117]
[1753994121626,41.74,174.79,174.78,15.66871117]
[1753994121833,41.72,174.79,174.78,15.66871117]
[1753994122623,41.72,174.79,174.78,21.3901896]
[1753994122828,41.72,174.79,174.78,10.09243058]
[1753994123126,42.4,174.79,174.76,5.7820487]
[1753994123325,0.68,174.78,174.76,0.06]
[1753994123843,0.68,174.77,174.76,10.15243058]
[1753994125425,41.72,174.79,174.76,10.15243058]
[1753994125714,41.72,174.79,174.78,10.09243058]
[1753994125894,47.44115109,174.79,174.77,10.09243058]
[1753994126419,47.44115109,174.79,174.76,0.06]
[1753994126420,42.4,174.79,174.78,10.09243058]
[1753994126914,41.66,174.79,174.78,10.09243058]
[1753994127902,0.68,174.84,174.78,15.81390901]
[1753994128098,0.68,174.84,174.82,10.09243058]
[1753994128099,41.66,174.83,174.82,10.09243058]
[1753994128298,42.34,174.83,174.82,10.09243058]
[1753994129528,41.66,174.83,174.82,10.09243058]
[1753994129726,6.39939479,174.85,174.82,10.09243058]
[1753994129727,0.68,174.85,174.82,10.09243058]
[1753994129934,0.68,174.85,174.84,10.09243058]
[1753994130149,42.34,174.85,174.84,10.09243058]
[1753994130331,41.66,174.85,174.84,10.09243058]
[1753994130643,0.71,174.88,174.8,6.29285398]
[1753994130805,0.03,174.85,174.83,5.71984213]
[1753994131009,0.03,174.85,174.83,6.29182634]
[1753994131236,0.03,174.85,174.84,0.43]
[1753994131632,0.03,174.85,174.84,17.21468397]
[1753994131815,41.66,174.87,174.84,17.21468397]
[1753994132141,0.03,174.88,174.86,26.87711455]
[1753994132333,0.03,174.88,174.87,10.66428395]